bitfinex/quotes_BTCUSD_20220103
["timestamp","ask_amount","ask_price","bid_price","bid_amount"]
[1641226128283,0.25917558,46621.0,46620.0,0.05458]
[1641226129084,0.24917558,46621.0,46620.0,0.05458]
[1641226129337,0.57272533,46621.0,46620.0,0.05458]
[1641226129539,2.19394934,46621.0,46620.0,0.05458]
[1641226129738,2.29384934,46621.0,46620.0,0.05458]
[1641226129934,0.05458,46615.0,46611.0,0.02]
[1641226130135,0.12061158,46612.0,46611.0,0.02]
[1641226130333,0.46852397,46612.0,46611.0,0.02]
[1641226130534,0.51852397,46612.0,46611.0,0.02]
[1641226131035,0.21011158,46612.0,46611.0,0.02]
[1641226131437,0.51336276,46612.0,46611.0,0.02]
[1641226132040,0.20511158,46612.0,46611.0,0.02]
[1641226132239,0.50305696,46612.0,46611.0,0.02]
[1641226132438,0.83075759,46612.0,46611.0,0.02]
[1641226133177,0.20511158,46612.0,46611.0,0.02]
[1641226133477,0.16011158,46612.0,46611.0,0.02]
[1641226133680,0.12061158,46612.0,46611.0,0.02]
[1641226133882,0.09725358,46612.0,46611.0,0.02]
[1641226134279,0.09725358,46612.0,46611.0,0.01972]
[1641226134882,0.09725358,46612.0,46611.0,0.46018204]
[1641226135383,0.09750787,46612.0,46611.0,0.46018204]
[1641226138624,0.09750787,46612.0,46611.0,0.53813223]
[1641226139526,0.09750787,46612.0,46611.0,0.46018204]
[1641226141175,0.09750787,46612.0,46611.0,0.01972]
[1641226141374,0.14750787,46612.0,46611.0,0.01972]
[1641226141575,0.54516965,46612.0,46611.0,0.01972]
[1641226141773,0.26162741,46612.0,46611.0,0.01972]
[1641226142978,0.52758184,46612.0,46611.0,0.01972]
[1641226143479,0.21036587,46612.0,46611.0,0.01972]
[1641226144330,0.26036587,46612.0,46611.0,0.01972]
[1641226145730,0.16036587,46612.0,46611.0,0.01972]
[1641226145931,0.07819229,46612.0,46611.0,0.01972]
[1641226146135,0.05483429,46612.0,46611.0,1.63972]
[1641226146332,0.05483429,46612.0,46611.0,0.36838]
[1641226146530,0.05483429,46612.0,46611.0,0.56838]
[1641226146731,0.05483429,46612.0,46611.0,0.82301444]
[1641226146931,0.05483429,46612.0,46611.0,0.61185478]
[1641226147532,0.05483429,46612.0,46611.0,1.16051478]
[1641226147736,0.05483429,46612.0,46611.0,0.96051478]
[1641226147973,0.05483429,46612.0,46611.0,0.019784]
[1641226148376,0.05410872,46612.0,46611.0,0.019784]
[1641226148572,0.05338261,46612.0,46611.0,0.019784]
[1641226148975,0.10338261,46612.0,46611.0,0.019784]
[1641226149174,0.12674061,46612.0,46611.0,0.019784]
[1641226149775,0.16624061,46612.0,46611.0,0.019784]
[1641226149975,0.20891419,46612.0,46611.0,0.019784]
[1641226150180,1.31891419,46612.0,46611.0,0.019784]
[1641226150384,1.32014037,46612.0,46611.0,0.019784]
[1641226150777,1.42004037,46612.0,46611.0,0.019784]
[1641226151578,0.30881419,46612.0,46611.0,0.019784]
[1641226151833,0.61853148,46612.0,46611.0,0.019784]
[1641226152236,2.07853148,46612.0,46611.0,0.019784]
[1641226152536,0.05338261,46610.0,46601.0,0.002]
[1641226152736,0.91,46611.0,46601.0,0.002]
[1641226152737,0.05338261,46603.0,46601.0,0.002]
[1641226152944,0.09605619,46602.0,46601.0,0.002]
[1641226153637,0.15891419,46602.0,46601.0,0.002]
[1641226154236,0.26257519,46602.0,46601.0,0.002]
[1641226154436,0.5086358,46602.0,46601.0,0.002]
[1641226154637,0.36257519,46602.0,46601.0,0.002]
[1641226154839,0.26257519,46602.0,46601.0,0.002]
[1641226155037,0.18921719,46602.0,46601.0,0.002]
[1641226155235,0.14654361,46602.0,46601.0,0.002]
[1641226155494,0.10704361,46602.0,46601.0,0.002]
[1641226155889,0.14971719,46602.0,46601.0,0.002]
[1641226156092,0.10704361,46602.0,46601.0,0.002]
[1641226156990,0.1072433,46602.0,46601.0,0.00307292]
[1641226157191,0.0535823,46602.0,46601.0,0.87209306]
[1641226157392,0.11515362,46606.0,46603.0,0.09932573]
[1641226157393,0.00016962,46606.0,46603.0,0.09932573]
[1641226157596,0.00016962,46606.0,46605.0,0.09777544]
[1641226157790,0.00016962,46606.0,46605.0,0.34866]
[1641226158189,0.23995904,46620.0,46605.0,0.34866]
[1641226158392,0.35017412,46619.0,46611.0,0.22192297]
[1641226158592,0.04267358,46614.0,46613.0,0.107284]
[1641226158795,0.04267358,46614.0,46613.0,0.053642]
[1641226159439,0.32681612,46623.0,46613.0,0.053642]
[1641226159640,0.053639,46617.0,46615.0,0.053642]
[1641226159841,0.24554182,46620.0,46615.0,0.07684109]
[1641226160040,0.023358,46619.0,46615.0,0.07684109]
[1641226160239,0.023358,46619.0,46615.0,0.13048109]
[1641226160441,0.0048,46627.0,46617.0,0.09399486]
[1641226160644,0.023358,46626.0,46619.0,0.20889531]
[1641226160841,0.023358,46626.0,46622.0,0.00121948]
[1641226161039,0.023358,46626.0,46625.0,0.07256283]
[1641226161242,0.06603158,46626.0,46625.0,0.07256283]
[1641226161641,0.06603158,46626.0,46625.0,0.4627975]
[1641226161838,0.04267358,46626.0,46625.0,0.4627975]
[1641226162040,0.2499,46635.0,46625.0,0.4627975]
[1641226162242,0.023358,46631.0,46628.0,0.39710115]
[1641226162440,1.24896101,46638.0,46628.0,0.39710115]
[1641226162441,0.00924893,46629.0,46628.0,0.303621]
[1641226162739,0.00924893,46629.0,46628.0,0.253621]
[1641226163395,0.03260693,46629.0,46628.0,0.048621]
[1641226163793,0.03260693,46629.0,46627.0,0.053621]
[1641226163994,0.04267358,46628.0,46627.0,0.053621]
[1641226164193,0.06603158,46628.0,46627.0,0.053621]
[1641226165495,0.06603158,46628.0,46627.0,0.070687]
[1641226165895,0.06603158,46628.0,46627.0,0.045687]
[1641226166749,0.021508,46628.0,46627.0,0.045687]
[1641226166946,2.91822546,46634.0,46629.0,1.67]
[1641226167142,0.1,46654.0,46653.0,0.00123713]
[1641226167344,0.2519,46659.0,46657.0,0.00129055]
[1641226167345,0.002,46659.0,46657.0,0.00129055]
[1641226167542,0.002,46659.0,46657.0,0.01482055]
[1641226167743,0.002,46659.0,46658.0,0.00122169]
[1641226167941,0.002,46659.0,46658.0,0.0734906]
[1641226168144,0.002,46659.0,46658.0,0.4218946]
[1641226168344,0.00111773,46669.0,46659.0,0.58]
[1641226168544,0.00111773,46669.0,46668.0,0.00129316]
[1641226168742,0.00111773,46669.0,46668.0,0.28674316]
[1641226168942,1.1793374,46671.0,46668.0,0.30496316]
[1641226168943,0.75199013,46671.0,46668.0,0.30496316]
[1641226169144,0.32543548,46674.0,46668.0,0.30367]
[1641226169342,0.25,46675.0,46668.0,0.30367]
[1641226169545,0.25,46675.0,46670.0,0.107137]
[1641226169843,0.04082358,46671.0,46670.0,0.107137]
[1641226170044,0.04082358,46671.0,46665.0,0.72520389]
[1641226170246,1.57082358,46666.0,46665.0,0.72520389]
[1641226170687,0.04082358,46666.0,46664.0,0.00783847]
[1641226170890,1.12082358,46665.0,46664.0,0.00783847]
[1641226171087,0.04082358,46665.0,46664.0,0.00783847]
[1641226172286,0.04082358,46665.0,46663.0,0.00124417]
[1641226172490,0.04082358,46664.0,46663.0,0.00124417]
[1641226173392,0.04200171,46664.0,46663.0,0.00124417]
[1641226173591,0.04200171,46664.0,46660.0,0.00783854]
[1641226173592,0.39955106,46664.0,46660.0,0.00783854]
[1641226173792,0.35872748,46664.0,46660.0,0.00783854]
[1641226173988,0.45872748,46664.0,46660.0,0.00783854]
[1641226174252,0.45872748,46664.0,46650.0,0.00127723]
[1641226174440,0.0536,46662.0,46650.0,0.00127723]
[1641226174638,0.0536,46662.0,46652.0,0.72520389]
[1641226174839,0.22323588,46656.0,46652.0,0.72520389]
[1641226175040,0.0536,46662.0,46652.0,0.72520389]
[1641226175240,0.0536,46662.0,46650.0,0.00127723]
[1641226175241,0.05,46656.0,46650.0,0.00127723]
[1641226175639,0.39894354,46661.0,46650.0,0.00127723]
[1641226175841,0.44894354,46661.0,46650.0,0.00127723]
[1641226176145,0.17953189,46657.0,46651.0,0.07042712]
[1641226176341,0.22953189,46657.0,46650.0,0.05487623]
[1641226177541,0.34894354,46661.0,46650.0,0.07194223]
[1641226177753,0.44894354,46661.0,46652.0,0.053595]
[1641226177976,0.0999,46663.0,46656.0,0.00125248]
[1641226178180,0.05,46663.0,46656.0,0.00125248]
[1641226178376,0.0001913,46660.0,46656.0,0.00125248]
[1641226178681,0.0001913,46660.0,46652.0,0.053595]
[1641226178682,0.22141674,46659.0,46652.0,0.053595]
[1641226179080,0.0001913,46660.0,46652.0,0.053595]
[1641226180578,0.0001913,46660.0,46653.0,0.2062409]
[1641226181380,0.0001913,46660.0,46655.0,0.053592]
[1641226181577,0.04082358,46656.0,46655.0,0.053592]
[1641226182642,0.04082358,46656.0,46655.0,0.05487923]
[1641226183243,0.04082358,46656.0,46655.0,0.37695436]
[1641226183442,0.04082358,46656.0,46655.0,0.14207311]
[1641226184242,0.04082358,46656.0,46655.0,0.05487923]
[1641226184443,0.04082358,46656.0,46651.0,0.10825568]
[1641226184642,0.0001913,46660.0,46651.0,0.10825568]
[1641226184845,0.21581539,46658.0,46651.0,0.10825568]
[1641226185043,0.04082358,46653.0,46651.0,0.10825568]
[1641226185246,0.31712007,46657.0,46651.0,0.00107168]
[1641226185247,0.08032358,46652.0,46651.0,0.00107168]
[1641226189098,0.047211,46660.0,46651.0,0.10107168]
[1641226189365,0.16787695,46671.0,46651.0,0.10107168]
[1641226189366,0.2499,46688.0,46660.0,0.15129039]
[1641226189565,0.2499,46688.0,46682.0,0.00122762]
[1641226189862,0.002,46699.0,46682.0,0.00122762]
[1641226189863,0.002,46699.0,46688.0,0.0012217]
[1641226190058,0.002,46699.0,46688.0,1.29042556]
[1641226190462,0.002,46699.0,46698.0,0.45559764]
[1641226190657,0.002,46699.0,46698.0,1.03108531]
[1641226191256,0.002,46699.0,46698.0,1.25409203]
[1641226191857,0.002,46699.0,46698.0,1.75409203]
[1641226192060,0.002,46699.0,46698.0,1.29849439]
[1641226192258,0.002,46699.0,46698.0,0.58758367]
[1641226192459,1.66658,46699.0,46698.0,0.49820367]
[1641226192658,1.57058,46699.0,46698.0,0.49820367]
[1641226193292,0.04658,46699.0,46698.0,0.49820367]
[1641226193690,0.04658,46699.0,46694.0,0.06135833]
[1641226194594,0.04658,46699.0,46694.0,0.00780933]
[1641226195091,0.04158,46699.0,46694.0,0.06136133]
[1641226195492,0.03658,46699.0,46694.0,0.06136133]
[1641226196290,0.03658,46699.0,46694.0,0.00780933]
[1641226196492,0.03658,46699.0,46695.0,0.72570575]
[1641226196766,0.03658,46697.0,46695.0,0.72570575]
[1641226196957,0.03658,46697.0,46694.0,0.00780933]
[1641226197159,0.07583629,46696.0,46694.0,0.00780933]
[1641226197356,2.00917447,46695.0,46694.0,0.00780933]
[1641226197556,1.81692642,46695.0,46694.0,0.00780933]
[1641226198357,1.81692642,46695.0,46689.0,0.72570575]
[1641226198560,0.90692642,46690.0,46689.0,0.72570575]
[1641226199159,0.14692642,46690.0,46689.0,0.72570575]
[1641226199665,0.03658,46690.0,46689.0,0.72570575]
[1641226199860,0.03658,46690.0,46689.0,0.72690913]
[1641226200263,0.03658,46690.0,46689.0,1.07531313]
[1641226200502,0.03658,46690.0,46689.0,0.6160209]
[1641226200692,0.03658,46690.0,46689.0,0.01826938]
[1641226200892,0.03658,46690.0,46689.0,1.22778209]
[1641226201692,0.03658,46690.0,46689.0,1.57618609]
[1641226202492,0.03658,46690.0,46689.0,1.80748098]
[1641226203595,0.03658,46690.0,46689.0,1.22778209]
[1641226203896,0.03658,46690.0,46689.0,1.22657871]
[1641226204541,0.03658,46690.0,46689.0,1.45760805]
[1641226204738,0.24658,46690.0,46689.0,1.45760805]
[1641226205640,0.24658,46690.0,46689.0,1.22657871]
[1641226206341,0.24658,46690.0,46689.0,0.017066]
[1641226206741,0.24658,46690.0,46689.0,0.20403898]
[1641226206942,0.24658,46690.0,46689.0,0.75244298]
[1641226207146,0.197,46690.0,46689.0,1.45326248]
[1641226207343,0.018619,46702.0,46689.0,1.30326248]
[1641226207549,0.018619,46702.0,46699.0,0.00124258]
[1641226207743,0.11034642,46700.0,46699.0,0.00124258]
[1641226208197,0.018619,46702.0,46699.0,0.00124258]
[1641226208604,0.08684386,46718.0,46699.0,0.00124258]
[1641226208605,0.3681137,46719.0,46706.0,0.107075]
[1641226208799,0.08684386,46718.0,46706.0,0.10828973]
[1641226208999,0.04711963,46720.0,46706.0,0.10828973]
[1641226209200,0.04342193,46718.0,46710.0,0.21086989]
[1641226209399,0.04342193,46718.0,46711.0,0.05429475]
[1641226209598,0.04342193,46718.0,46714.0,0.00050295]
[1641226209599,0.0950866,46717.0,46714.0,0.00050295]
[1641226210601,0.02316138,46718.0,46714.0,0.00050295]
[1641226210602,0.02316138,46718.0,46716.0,0.36305641]
[1641226210801,0.02316138,46718.0,46717.0,0.34965277]
[1641226211003,0.02316138,46718.0,46716.0,0.160549]
[1641226211399,0.04711963,46720.0,46716.0,0.160549]
[1641226211840,0.36024642,46717.0,46716.0,0.160549]
[1641226212651,0.00778,46713.0,46695.0,0.05]
[1641226212846,0.00778,46713.0,46686.0,0.06425889]
[1641226212847,0.2499,46708.0,46700.0,0.725738]
[1641226213044,0.08093987,46701.0,46700.0,0.725738]
[1641226213239,0.12043987,46701.0,46700.0,0.725738]
[1641226213440,0.23078629,46701.0,46698.0,0.053545]
[1641226213637,0.11034642,46699.0,46698.0,0.053545]
[1641226213841,0.0395,46699.0,46697.0,0.10834252]
[1641226214438,0.2499,46702.0,46697.0,0.16188552]
[1641226214639,0.2499,46702.0,46701.0,0.00124878]
[1641226214841,0.92808,46713.0,46701.0,0.34965278]
[1641226215038,0.00778,46713.0,46701.0,0.10124878]
[1641226215237,0.2499,46707.0,46702.0,0.48825652]
[1641226215498,0.2499,46707.0,46703.0,0.053536]
[1641226216095,0.2499,46707.0,46706.0,0.053539]
[1641226216395,0.36024642,46707.0,46706.0,0.053539]
[1641226218000,0.36024642,46707.0,46705.0,0.107077]
[1641226218198,0.11034642,46706.0,46705.0,0.107077]
[1641226220866,0.11034642,46706.0,46702.0,0.00778]
[1641226221063,0.2499,46703.0,46695.0,0.00125245]
[1641226221265,0.0395,46702.0,46694.0,0.0010709]
[1641226221465,1.13,46701.0,46695.0,0.053559]
[1641226221662,0.2499,46696.0,46695.0,0.053559]
[1641226221962,0.39974642,46696.0,46695.0,0.053559]
[1641226222361,0.14984642,46696.0,46695.0,0.053559]
[1641226222563,0.14984642,46696.0,46694.0,0.1081769]
[1641226222564,0.19984642,46696.0,46694.0,0.1081769]
[1641226222760,0.07714148,46695.0,46694.0,0.1081769]
[1641226225285,0.04744252,46695.0,46694.0,0.1081769]
[1641226226931,0.04863154,46695.0,46694.0,0.1081769]
[1641226227432,0.25863154,46695.0,46694.0,0.4881769]
[1641226228035,0.21118902,46695.0,46694.0,0.4881769]
[1641226228235,0.23810311,46695.0,46694.0,0.4881769]
[1641226228436,0.23810311,46695.0,46694.0,0.1081769]
[1641226228834,0.21118902,46695.0,46694.0,0.1081769]
[1641226230697,0.50890758,46695.0,46694.0,0.1081769]
[1641226231296,0.21118902,46695.0,46694.0,0.1081769]
[1641226232700,0.21139486,46695.0,46694.0,0.1081769]
[1641226233295,0.21139486,46695.0,46694.0,0.2881769]
[1641226233502,0.21139486,46695.0,46694.0,0.1081769]
[1641226234531,0.51198747,46695.0,46694.0,0.1081769]
[1641226234732,0.21139486,46695.0,46694.0,0.1081769]
[1641226235932,0.18639486,46695.0,46694.0,0.1081769]
[1641226237232,0.18639486,46695.0,46694.0,0.3281769]
[1641226237733,0.18639486,46695.0,46694.0,0.1081769]
[1641226238196,0.5379284,46695.0,46694.0,0.1081769]
[1641226238396,0.24655659,46695.0,46694.0,0.1081769]
[1641226239697,0.54014918,46695.0,46694.0,0.1081769]
[1641226240096,0.57964918,46695.0,46694.0,0.1081769]
[1641226240296,0.57964918,46695.0,46694.0,0.0010709]
[1641226240297,0.66126918,46695.0,46694.0,0.0010709]
[1641226240524,0.76126918,46695.0,46694.0,0.0010709]
[1641226240697,1.11116917,46695.0,46694.0,0.0010709]
[1641226241096,1.01116918,46695.0,46694.0,7.09e-05]
[1641226241300,1.01116918,46695.0,46691.0,0.00285311]
[1641226241301,0.81747658,46695.0,46691.0,0.00285311]
[1641226241498,0.06016173,46692.0,46691.0,0.00285311]
[1641226241747,1.28323273,46692.0,46691.0,0.05743311]
[1641226241945,1.38323273,46692.0,46691.0,0.05743311]
[1641226242147,1.48323273,46692.0,46691.0,0.05743311]
[1641226242349,1.48323273,46692.0,46691.0,0.05458]
[1641226243146,1.38323273,46692.0,46691.0,0.05458]
[1641226243347,0.25351471,46692.0,46691.0,0.05458]
[1641226243747,1.38351471,46692.0,46691.0,0.05458]
[1641226244248,0.25351471,46692.0,46691.0,0.05458]
[1641226244845,1.38351471,46692.0,46691.0,0.05458]
[1641226245248,1.38351471,46692.0,46689.0,0.017066]
[1641226245249,0.47243287,46690.0,46689.0,0.008536]
[1641226245512,1.27433018,46689.0,46674.0,0.107152]
[1641226245697,1.27433018,46689.0,46671.0,0.727738]
[1641226245698,0.00128195,46683.0,46671.0,0.727738]
[1641226245897,0.18884911,46677.0,46671.0,0.002]
[1641226246101,0.0395,46676.0,46671.0,0.002]
[1641226246296,0.0395,46676.0,46672.0,0.09684113]
[1641226246505,0.093074,46676.0,46672.0,0.09684113]
[1641226246696,0.093074,46676.0,46672.0,0.51718607]
[1641226247399,0.093074,46676.0,46675.0,0.2142407]
[1641226247997,1.0105465,46685.0,46675.0,0.2142407]
[1641226247998,1.010537,46685.0,46675.0,0.78661961]
[1641226248199,0.0047,46689.0,46678.0,0.107131]
[1641226248396,0.21486574,46690.0,46680.0,0.00125791]
[1641226248598,0.21486574,46690.0,46681.0,0.05356]
[1641226248799,0.21486574,46690.0,46680.0,0.00125791]
[1641226249002,0.21486574,46690.0,46685.0,0.25053073]
[1641226249246,0.21486574,46690.0,46686.0,0.053559]
[1641226249446,0.06016173,46687.0,46686.0,0.053559]
[1641226249648,0.06016173,46687.0,46685.0,0.35764873]
[1641226249850,0.05356,46689.0,46685.0,0.35764873]
[1641226250047,0.04856,46689.0,46685.0,0.115651]
[1641226251555,0.0395,46688.0,46685.0,0.008533]
[1641226251850,1.68016173,46686.0,46685.0,0.008533]
[1641226252049,1.91892537,46686.0,46685.0,0.008533]
[1641226252450,1.92039151,46686.0,46685.0,0.008533]
[1641226254399,3.05066848,46686.0,46685.0,0.008533]
[1641226254600,3.15066848,46686.0,46685.0,0.008533]
[1641226254800,3.05066848,46686.0,46685.0,0.008533]
[1641226255801,1.82140484,46686.0,46685.0,0.008533]
[1641226256854,2.12210683,46686.0,46685.0,0.008533]
[1641226259850,3.35210683,46686.0,46685.0,0.008533]
[1641226260052,3.35718445,46686.0,46685.0,0.008533]
[1641226260253,3.35718445,46686.0,46671.0,0.002]
[1641226260254,0.00853,46685.0,46671.0,0.002]
[1641226260509,0.053585,46678.0,46671.0,0.002]
[1641226260798,0.06016173,46673.0,46671.0,0.002]
[1641226260996,0.06016173,46672.0,46671.0,0.002]
[1641226261198,0.06016173,46672.0,46671.0,0.010533]
[1641226262005,0.06016173,46672.0,46671.0,0.064118]
[1641226262900,0.06016173,46672.0,46671.0,0.010533]
[1641226263200,0.17148519,46672.0,46671.0,0.010533]
[1641226264003,1.10148519,46672.0,46671.0,0.010533]
[1641226264450,1.39813285,46672.0,46671.0,0.010533]
[1641226265454,1.44813285,46672.0,46671.0,0.010533]
[1641226265652,1.49813285,46672.0,46671.0,0.010533]
[1641226265853,2.22763285,46672.0,46671.0,0.010533]
[1641226266252,3.35763285,46672.0,46671.0,0.010533]
[1641226266754,3.52669285,46672.0,46665.0,0.00775983]
[1641226266957,0.05716173,46667.0,46665.0,0.00775983]
[1641226267159,3.21627263,46666.0,46665.0,0.00775983]
[1641226267353,2.61,46665.0,46656.0,0.00011]
[1641226267555,0.05716173,46662.0,46656.0,0.00011]
[1641226267755,1.75866615,46662.0,46656.0,0.00011]
[1641226268014,1.80866615,46662.0,46656.0,0.00011]
[1641226268205,1.90866615,46662.0,46656.0,0.00011]
[1641226268407,0.26874214,46661.0,46656.0,0.00011]
[1641226268605,0.05716173,46657.0,46656.0,0.00011]
[1641226268805,0.4388335,46657.0,46656.0,0.00011]
[1641226269005,0.40104387,46657.0,46656.0,0.00011]
[1641226269604,0.39147117,46657.0,46656.0,0.00011]
[1641226270207,0.49147117,46657.0,46656.0,0.00011]
[1641226270608,0.57155117,46657.0,46653.0,0.00011]
[1641226270809,0.05716173,46654.0,46653.0,0.00011]
[1641226271008,0.08361106,46653.0,46652.0,0.00011]
[1641226271210,1.63602501,46653.0,46652.0,0.00011]
[1641226271407,1.68602501,46653.0,46652.0,0.008643]
[1641226271609,0.65602501,46653.0,46652.0,0.008643]
[1641226271848,0.62603295,46653.0,46652.0,0.008643]
[1641226272050,0.52603295,46653.0,46652.0,0.008643]
[1641226273451,1.65603295,46653.0,46652.0,0.008643]
[1641226274252,0.20028073,46653.0,46652.0,0.008643]
[1641226274454,1.64107557,46653.0,46652.0,0.008643]
[1641226274654,1.6419465,46653.0,46652.0,0.008643]
[1641226275058,1.6419465,46653.0,46652.0,0.008533]
[1641226275354,1.6419465,46653.0,46652.0,0.003643]
[1641226275607,0.20028073,46653.0,46652.0,0.003643]
[1641226276009,0.20028073,46653.0,46651.0,0.006379]
[1641226276207,0.05716173,46652.0,46651.0,0.006379]
[1641226276506,0.09687623,46652.0,46651.0,0.00745076]
[1641226276709,0.09687623,46652.0,46651.0,0.37745076]
[1641226278111,0.09687623,46652.0,46651.0,0.00745076]
[1641226278311,0.39957822,46652.0,46651.0,0.00745076]
[1641226278814,0.09687623,46652.0,46651.0,0.00745076]
[1641226279011,0.09806635,46652.0,46651.0,0.00745076]
[1641226279543,0.09806635,46652.0,46651.0,0.01598476]
[1641226279747,0.09806635,46652.0,46651.0,0.19598476]
[1641226280745,0.09806635,46652.0,46651.0,0.01598476]
[1641226281747,0.09806635,46652.0,46651.0,0.24205876]
[1641226282246,0.09806635,46652.0,46651.0,0.33367724]
[1641226282446,0.09806635,46652.0,46651.0,0.01205876]
[1641226283108,0.41236749,46652.0,46651.0,0.01205876]
[1641226283306,0.46236749,46652.0,46651.0,0.00705876]
[1641226283513,0.46236749,46652.0,46643.0,0.725958]
[1641226283514,1.71456541,46644.0,46643.0,0.725958]
[1641226283711,1.43660775,46644.0,46643.0,0.725628]
[1641226283908,1.48660775,46644.0,46643.0,0.725298]
[1641226284108,1.67023299,46644.0,46643.0,0.725298]
[1641226284310,1.77142331,46644.0,46643.0,0.290603]
[1641226284508,0.10363,46643.0,46641.0,0.002]
[1641226284714,0.20392184,46642.0,46641.0,0.002]
[1641226284908,0.21031042,46642.0,46641.0,0.002]
[1641226285109,0.26031042,46642.0,46641.0,0.002]
[1641226285308,1.39031042,46642.0,46641.0,0.002]
[1641226285515,1.39031042,46642.0,46641.0,0.0001]
[1641226285710,1.4,46641.0,46640.0,0.00044]
[1641226286009,1.4,46641.0,46635.0,0.00011]
[1641226286010,1.13,46637.0,46635.0,0.00011]
[1641226286209,0.4668701,46636.0,46635.0,0.00011]
[1641226286610,1.5968701,46636.0,46635.0,0.00011]
[1641226286851,0.0780106,46635.0,46634.0,0.00044]
[1641226287052,0.48388077,46635.0,46634.0,0.00044]
[1641226287454,0.40587017,46635.0,46634.0,0.00044]
[1641226287654,0.40587017,46635.0,46634.0,0.008973]
[1641226287855,0.40587017,46635.0,46634.0,0.017506]
[1641226288257,0.09666173,46635.0,46634.0,0.017506]
[1641226288658,0.30666173,46635.0,46634.0,0.017506]
[1641226289162,0.21,46635.0,46634.0,0.017506]
[1641226289358,0.21,46635.0,46634.0,0.0187938]
[1641226289757,0.21119055,46635.0,46634.0,0.0187938]
[1641226290357,0.21119055,46635.0,46634.0,0.017506]
[1641226293205,0.21119055,46635.0,46634.0,0.69424655]
[1641226293402,0.21119055,46635.0,46634.0,1.07436482]
[1641226293602,0.21119055,46635.0,46634.0,1.08152655]
[1641226293799,0.00029813,46636.0,46635.0,0.28189794]
[1641226294000,0.00029813,46636.0,46635.0,0.63030194]
[1641226294457,0.00029813,46636.0,46635.0,0.73030194]
[1641226295455,0.00029813,46636.0,46635.0,0.53030194]
[1641226295656,0.00029813,46636.0,46635.0,0.85708963]
[1641226295861,0.00029813,46636.0,46635.0,0.53030194]
[1641226296057,0.00029813,46636.0,46635.0,0.18189794]
[1641226296256,0.00029813,46636.0,46635.0,0.08189794]
[1641226296659,0.00029813,46636.0,46634.0,0.01876993]
[1641226297460,0.00029813,46636.0,46634.0,0.017506]
[1641226298308,0.21029813,46636.0,46634.0,0.017506]
[1641226299308,0.50589374,46636.0,46634.0,0.017506]
[1641226299509,1.9208998,46635.0,46634.0,0.017506]
[1641226299709,1.7108998,46635.0,46634.0,0.017506]
[1641226299911,0.35806153,46635.0,46634.0,0.017506]
[1641226300310,0.3008998,46635.0,46634.0,1.22833182]
[1641226300511,0.26029813,46636.0,46634.0,1.22833182]
[1641226300710,0.26029813,46636.0,46634.0,0.017506]
[1641226301511,0.26029813,46636.0,46635.0,0.72653448]
[1641226301760,0.21029813,46636.0,46635.0,0.72653448]
[1641226301961,0.26029813,46636.0,46635.0,0.72653448]
[1641226302159,0.26029813,46636.0,46635.0,0.99019125]
[1641226302160,0.21029813,46636.0,46635.0,0.99019125]
[1641226302362,0.21029813,46636.0,46635.0,0.26365677]
[1641226302569,0.21029813,46636.0,46635.0,0.35602563]
[1641226302761,0.21029813,46636.0,46635.0,1.56675236]
[1641226302963,0.21029813,46636.0,46635.0,2.01515636]
[1641226303164,0.21029813,46636.0,46635.0,0.80442963]
[1641226303362,0.21029813,46636.0,46635.0,0.70442963]
[1641226303565,0.21029813,46636.0,46635.0,0.35602563]
[1641226303768,0.21299074,46636.0,46635.0,1.56675236]
[1641226307408,0.21030074,46636.0,46635.0,1.56675236]
[1641226307608,0.21030074,46636.0,46635.0,2.19574636]
[1641226307809,0.21029813,46636.0,46635.0,2.39574636]
[1641226308011,0.21029813,46636.0,46635.0,2.44574636]
[1641226308207,0.09456541,46644.0,46637.0,0.2]
[1641226308409,0.09456541,46644.0,46643.0,1.22471228]
[1641226308608,0.09456541,46644.0,46643.0,1.67311628]
[1641226309010,0.09590375,46644.0,46643.0,1.62670928]
[1641226309452,0.09590375,46644.0,46643.0,2.83743601]
[1641226310052,0.09508867,46644.0,46643.0,2.83743601]
[1641226310452,0.09456541,46644.0,46643.0,2.83743601]
[1641226311754,0.09456541,46644.0,46643.0,2.93743601]
[1641226313005,0.09456541,46644.0,46643.0,2.83743601]
[1641226313198,0.09456541,46644.0,46643.0,2.93743601]
[1641226314099,0.09574405,46644.0,46643.0,2.93743601]
[1641226314499,0.09574405,46644.0,46643.0,2.83743601]
[1641226315500,0.09574405,46644.0,46643.0,2.42491013]
[1641226315703,0.09574405,46644.0,46643.0,1.1605904]
[1641226317146,0.09574405,46644.0,46643.0,1.0605904]
[1641226317348,0.09574405,46644.0,46643.0,0.30210058]
[1641226317548,0.09574405,46644.0,46643.0,0.65050458]
[1641226317950,0.30574405,46644.0,46643.0,0.65050458]
[1641226318148,0.30574405,46644.0,46643.0,0.83211358]
[1641226318556,0.30574405,46644.0,46643.0,0.93211358]
[1641226319056,0.30574405,46644.0,46643.0,0.91230602]
[1641226319351,0.30574405,46644.0,46643.0,0.73069702]
[1641226319551,0.30597006,46644.0,46643.0,0.73069702]
[1641226320155,0.30597006,46644.0,46643.0,0.95232829]
[1641226320596,0.30597006,46644.0,46643.0,0.73069702]
[1641226324855,0.30597006,46644.0,46643.0,0.348404]
[1641226325058,0.30597006,46644.0,46642.0,0.08953616]
[1641226326760,0.30597006,46644.0,46642.0,0.00107196]
[1641226327559,0.30536469,46644.0,46642.0,0.00107196]
[1641226328206,0.30536469,46644.0,46643.0,0.32890247]
[1641226328807,0.30536469,46644.0,46643.0,0.77730647]
[1641226330009,0.30536469,46644.0,46643.0,0.42890247]
[1641226330413,0.30536469,46644.0,46643.0,1.11383214]
[1641226330810,0.30536469,46644.0,46643.0,0.77730647]
[1641226331212,0.30536469,46644.0,46643.0,0.95551554]
[1641226332466,0.30536469,46644.0,46643.0,2.16595601]
[1641226333065,0.30536469,46644.0,46643.0,2.17448901]
[1641226333670,0.30536469,46644.0,46643.0,2.37448901]
[1641226335713,0.30479142,46644.0,46643.0,2.37448901]
[1641226335915,0.30422469,46644.0,46643.0,2.69604001]
[1641226336117,0.00778367,46648.0,46644.0,0.00714375]
[1641226336413,0.0001,46670.0,46648.0,0.2]
[1641226336716,0.25021742,46668.0,46659.0,0.07474297]
[1641226336913,0.0001,46670.0,46659.0,0.95503828]
[1641226337117,0.0001,46670.0,46659.0,1.18188828]
[1641226337313,0.0001,46670.0,46659.0,1.23546328]
[1641226338115,0.1796084,46669.0,46659.0,1.18546328]
[1641226338315,0.053582,46668.0,46659.0,0.78150228]